fUST/lending_fUST_20250305
["ID","MTS","AMOUNT","RATE_DAILY","PERIOD"]
[355400647,1741105872814,-696.57,0.00044109,120]
[355400648,1741105872845,-151.0,0.00044109,120]
[355400649,1741105872876,-151.0,0.00044109,120]
[355400650,1741105872908,-500.0,0.00044109,120]
[355400651,1741105872940,-151.0,0.00044109,120]
[355400652,1741105872977,-262.756291,0.00044109,120]
[355400653,1741105873008,-500.0,0.00044109,120]
[355400654,1741105873039,-768.96,0.00044109,120]
[355400655,1741105873071,-500.0,0.00044109,120]
[355400656,1741105873106,-4600.61,0.00044109,120]
[355400657,1741105873139,-699.41,0.00044109,120]
[355400658,1741105873172,-532.38,0.00044109,120]
[355400659,1741105873212,-2239.84,0.00044109,120]
[355400660,1741105873246,-877.62,0.00044109,120]
[355400661,1741105873282,-542.23,0.00044109,120]
[355400662,1741105873314,-151.0,0.00044109,120]
[355400663,1741105873344,-866.1,0.00044109,120]
[355400664,1741105873374,-534.78,0.00044109,120]
[355400665,1741105873405,-151.0,0.00044109,120]
[355400666,1741105873440,-500.0,0.00044109,120]
[355400667,1741105873476,-561.19,0.00044109,120]
[355400668,1741105873508,-810.98,0.00044109,120]
[355400669,1741105873540,-151.0,0.00044109,120]
[355400670,1741105873573,-1169.18,0.00044109,120]
[355400671,1741105873605,-1459.67,0.00044109,120]
[355400672,1741105873637,-500.0,0.00044109,120]
[355400673,1741105873667,-151.0,0.00044109,120]
[355400674,1741105873704,-500.0,0.00044109,120]
[355400675,1741105873734,-500.0,0.00044109,120]
[355400676,1741105873764,-701.01,0.00044109,120]
[355400677,1741105873795,-2585.09,0.00044109,120]
[355400678,1741105873826,-500.0,0.00044109,120]
[355400679,1741105873856,-500.0,0.00044109,120]
[355400680,1741105873885,-151.0,0.00044109,120]
[355400681,1741105873915,-1453.2,0.00044109,30]
[355400682,1741105873950,-686.383,0.00044152,30]
[355400683,1741105873980,-456.735376,0.00044178,120]
[355400684,1741105874013,-456.735376,0.00044178,120]
[355400685,1741105874044,-151.0,0.00044178,120]
[355400686,1741105874075,-482.201552,0.00044178,120]
[355400687,1741105874109,-482.201552,0.00044178,120]
[355400688,1741105874140,-616.372589,0.00044178,120]
[355400689,1741105874171,-616.372589,0.00044178,120]
[355400690,1741105874205,-717.5160578,0.00044192,30]
[355400691,1741105874236,-1136.64054549,0.00044196,92]
[355400692,1741105874266,-151.0,0.000442,120]
[355400693,1741105874299,-2400.0,0.00044218,120]
[355400694,1741105874331,-160.04581397,0.00044247,120]
[355400695,1741105874361,-1136.64054549,0.00044296,96]
[355400696,1741105874391,-150.5,0.000443,120]
[355400697,1741105874421,-178.133947,0.0004434,110]
[355400698,1741105874455,-171.844965,0.0004434,120]
[355400699,1741105874485,-171.844965,0.0004434,120]
[355400700,1741105874513,-150.0,0.00044382,30]
[355400701,1741105874542,-500.0,0.00044383,120]
[355400702,1741105874572,-500.0,0.00044383,120]
[355400703,1741105874602,-500.0,0.00044383,120]
[355400704,1741105874631,-696.57,0.00044383,120]
[355400705,1741105874661,-500.0,0.00044383,120]
[355400706,1741105874691,-500.0,0.00044383,120]
[355400707,1741105874725,-768.96,0.00044383,120]
[355400708,1741105874756,-500.0,0.00044383,120]
[355400709,1741105874788,-4600.61,0.00044383,120]
[355400710,1741105874821,-699.41,0.00044383,120]
[355400711,1741105874852,-2239.84,0.00044383,120]
[355400712,1741105874883,-877.62,0.00044383,120]
[355400713,1741105874915,-542.23,0.00044383,120]
[355400714,1741105874951,-866.1,0.00044383,120]
[355400715,1741105875093,-534.78,0.00044383,120]
[355400716,1741105875130,-500.0,0.00044383,120]
[355400717,1741105875163,-561.19,0.00044383,120]
[355400718,1741105875203,-810.98,0.00044383,120]
[355400719,1741105875239,-1169.18,0.00044383,120]
[355400720,1741105875271,-1459.67,0.00044383,120]
[355400721,1741105875303,-500.0,0.00044383,120]
[355400722,1741105875335,-500.0,0.00044383,120]
[355400723,1741105875370,-500.0,0.00044383,120]
[355400724,1741105875404,-701.01,0.00044383,120]
[355400725,1741105875434,-2585.09,0.00044383,120]
[355400726,1741105875469,-500.0,0.00044383,120]
[355400727,1741105875501,-500.0,0.00044383,120]
[355400728,1741105875531,-1453.2,0.00044383,30]
[355400729,1741105875562,-155.0403253,0.00044384,30]
[355400730,1741105875594,-155.0403253,0.00044384,30]
[355400731,1741105875623,-310.0806506,0.00044384,30]
[355400732,1741105875654,-311.7541052,0.00044384,30]
[355400733,1741105875684,-10679.4019046,0.0004439,60]
[355400734,1741105875716,-156.107658,0.0004439,120]
[355400735,1741105875745,-1136.64054549,0.00044396,99]
[355400736,1741105875774,-150.0,0.000444,120]
[355400737,1741105875806,-1168.0,0.000444,36]
[355400738,1741105875838,-13549.95719169,0.000444,120]
[355400739,1741105875867,-5000.0,0.00044451,30]
[355400740,1741105875898,-8298.0,0.00044488,120]
[355400741,1741105875929,-8298.0,0.00044488,120]
[355400742,1741105875968,-8298.0,0.00044488,120]
[355400743,1741105875997,-8298.0,0.00044488,120]
[355400744,1741105876025,-8298.0,0.00044488,120]
[355400745,1741105876053,-8298.0,0.00044488,120]
[355400746,1741105876082,-151.0,0.00044488,120]
[355400747,1741105876112,-1136.64054549,0.00044496,96]
[355400748,1741105876142,-8298.0,0.00044498,120]
[355400749,1741105876175,-8298.0,0.00044498,120]
[355400750,1741105876217,-8298.0,0.00044498,120]
[355400751,1741105876245,-8298.0,0.00044498,120]
[355400752,1741105876274,-173.003682,0.00044498,120]
[355400753,1741105876305,-173.003682,0.00044498,120]
[355400754,1741105876334,-500.0,0.000445,120]
[355400755,1741105876363,-500.0,0.000445,120]
[355400756,1741105876398,-2960360.94843431,0.000445,120]
[355400757,1741105876427,-651.32648451,0.000445,120]
[355400758,1741105876456,-151.0,0.000445,120]
[355400759,1741105876485,-151.0,0.000445,120]
[355400760,1741105876514,-171.844965,0.000445,120]
[355400761,1741105876544,-171.844965,0.000445,120]
[355400762,1741105876574,-173.003682,0.000445,120]
[355400763,1741105876604,-173.003682,0.000445,120]
[355400764,1741105876632,-151.0,0.000445,120]
[355400765,1741105876662,-151.0,0.000445,120]
[355400766,1741105876692,-456.735376,0.000445,120]
[355400767,1741105876728,-456.735376,0.000445,120]
[355400768,1741105876762,-195.758114,0.000445,120]
[355400769,1741105876792,-195.758114,0.000445,120]
[355400770,1741105876833,-151.0,0.000445,120]
[355400771,1741105876874,-201.39,0.000445,36]
[355400772,1741105876910,-201.39,0.000445,36]
[355400773,1741105876943,-201.39,0.000445,36]
[355400774,1741105876983,-201.39,0.000445,36]
[355400775,1741105877020,-201.39,0.000445,36]
[355400776,1741105877053,-201.39,0.000445,36]
[355400777,1741105877084,-201.39,0.000445,36]
[355400778,1741105877117,-201.39,0.000445,36]
[355400779,1741105877149,-201.39,0.000445,36]
[355400780,1741105877181,-201.39,0.000445,36]
[355400781,1741105877218,-201.39,0.000445,36]
[355400782,1741105877251,-201.39,0.000445,36]
[355400783,1741105877281,-201.39,0.000445,36]
[355400784,1741105877311,-201.39,0.000445,36]
[355400785,1741105877454,-201.39,0.000445,36]
[355400786,1741105877491,-201.39,0.000445,36]
[355400787,1741105877525,-201.39,0.000445,36]
[355400788,1741105877559,-201.39,0.000445,36]
[355400789,1741105877593,-201.39,0.000445,36]
[355400790,1741105877626,-201.39,0.000445,36]
[355400791,1741105877659,-201.39,0.000445,36]
[355400792,1741105877694,-201.39,0.000445,36]
[355400793,1741105877733,-201.39,0.000445,36]
[355400794,1741105877766,-201.39,0.000445,36]
[355400795,1741105877797,-151.0,0.000445,120]
[355400796,1741105877827,-151.0,0.000445,120]
[355400797,1741105877857,-151.0,0.000445,120]
[355400798,1741105877886,-482.201552,0.000445,120]
[355400799,1741105877915,-482.201552,0.000445,120]
[355400800,1741105877944,-616.372589,0.000445,120]
[355400801,1741105877977,-616.372589,0.000445,120]
[355400802,1741105878005,-1158609.17544031,0.000445,120]
[355400803,1741105878037,-151.0,0.000445,120]
[355400804,1741105878070,-151.0,0.000445,120]
[355400805,1741105878102,-151.0,0.000445,120]
[355400806,1741105878138,-151.0,0.000445,120]
[355400807,1741105878175,-151.0,0.000445,120]
[355400808,1741105878212,-151.0,0.000445,120]
[355400809,1741105878244,-198.392884,0.000445,120]
[355400810,1741105878278,-151.0,0.000445,120]
[355400811,1741105878311,-151.0,0.000445,120]
[355400812,1741105878343,-1136.64054549,0.00044596,96]
[355400813,1741105878376,-500.0,0.00044657,120]
[355400814,1741105878409,-500.0,0.00044657,120]
[355400815,1741105878440,-500.0,0.00044657,120]
[355400816,1741105878477,-696.57,0.00044657,120]
[355400817,1741105878509,-500.0,0.00044657,120]
[355400818,1741105878541,-500.0,0.00044657,120]
[355400819,1741105878571,-768.96,0.00044657,120]
[355400820,1741105878601,-500.0,0.00044657,120]
[355400821,1741105878631,-4600.61,0.00044657,120]
[355400822,1741105878663,-699.41,0.00044657,120]
[355400823,1741105878695,-2239.84,0.00044657,120]
[355400824,1741105878733,-877.62,0.00044657,120]
[355400825,1741105878767,-542.23,0.00044657,120]
[355400826,1741105878803,-866.1,0.00044657,120]
[355400827,1741105878837,-534.78,0.00044657,120]
[355400828,1741105878872,-500.0,0.00044657,120]
[355400829,1741105878904,-561.19,0.00044657,120]
[355400830,1741105878937,-810.98,0.00044657,120]
[355400831,1741105878977,-1169.18,0.00044657,120]
[355400832,1741105879010,-1459.67,0.00044657,120]
[355400833,1741105879044,-500.0,0.00044657,120]
[355400834,1741105879076,-150.67978607,0.00044657,120]
[355400835,1741105879112,-500.0,0.00044657,120]
[355400836,1741105879144,-701.01,0.00044657,120]
[355400837,1741105879176,-2585.09,0.00044657,120]
[355400838,1741105879210,-500.0,0.00044657,120]
[355400839,1741105879240,-500.0,0.00044657,120]
[355400840,1741105879271,-1453.2,0.00044657,30]
[355400841,1741105879302,-1136.64054549,0.00044696,99]
[355400842,1741105879332,-1892.36,0.000447,30]
[355400843,1741105879369,-5244.99,0.000447,30]
[355400844,1741105879413,-196.34,0.000447,30]
[355400845,1741105879444,-500.0,0.00044748,30]
[355400846,1741105879480,-2400.0,0.00044766,120]
[355400847,1741105879512,-160.04581397,0.00044795,120]
[355400848,1741105879544,-1136.64054549,0.00044796,94]
[355400849,1741105879576,-318.0,0.00044877,90]
[355400850,1741105879609,-1136.64054549,0.00044896,93]
[355400851,1741105879641,-5000.0,0.000449,30]
[355400852,1741105879770,-500.0,0.00044931,120]
[355400853,1741105879809,-500.0,0.00044931,120]
[355400854,1741105879841,-500.0,0.00044931,120]
[355400855,1741105879871,-696.57,0.00044931,120]
[355400856,1741105879901,-500.0,0.00044931,120]
[355400857,1741105879931,-500.0,0.00044931,120]
[355400858,1741105879959,-768.96,0.00044931,120]
[355400859,1741105879989,-500.0,0.00044931,120]
[355400860,1741105880019,-4600.61,0.00044931,120]
[355400861,1741105880050,-699.41,0.00044931,120]
[355400862,1741105880083,-2239.84,0.00044931,120]
[355400863,1741105880118,-877.62,0.00044931,120]
[355400864,1741105880149,-542.23,0.00044931,120]
[355400865,1741105880182,-866.1,0.00044931,120]
[355400866,1741105880219,-534.78,0.00044931,120]
[355400867,1741105880250,-500.0,0.00044931,120]
[355400868,1741105880280,-561.19,0.00044931,120]
[355400869,1741105880312,-810.98,0.00044931,120]
[355400870,1741105880342,-1169.18,0.00044931,120]
[355400871,1741105880374,-1459.67,0.00044931,120]
[355400872,1741105880406,-500.0,0.00044931,120]
[355400873,1741105880439,-500.0,0.00044931,120]
[355400874,1741105880477,-701.01,0.00044931,120]
[355400875,1741105880511,-2585.09,0.00044931,120]
[355400876,1741105880543,-500.0,0.00044931,120]
[355400877,1741105880575,-500.0,0.00044931,120]
[355400878,1741105880607,-1453.2,0.00044931,30]
[355400879,1741105880638,-500.0,0.00044986,30]
[355400880,1741105880668,-1136.64054549,0.00044996,100]
[355400881,1741105880704,-20000.0,0.00045,45]
[355400882,1741105880732,-151.0,0.00045,120]
[355400883,1741105880761,-1000.0,0.00045,30]
[355400884,1741105880790,-400.0,0.00045,120]
[355400885,1741105880822,-2161.2044821,0.00045,60]
[355400886,1741105880852,-500.0,0.00045,120]
[355400887,1741105880880,-2000.0,0.00045,37]
[355400888,1741105880908,-4634.30255443,0.00045,120]
[355400889,1741105880939,-151.0,0.00045,120]
[355400890,1741105880975,-151.0,0.00045,120]
[355400891,1741105881005,-158.70626,0.00045,120]
[355400892,1741105881037,-151.0,0.00045,30]
[355400893,1741105881069,-151.0,0.00045,30]
[355400894,1741105881099,-171.844965,0.00045,120]
[355400895,1741105881131,-171.844962,0.00045,120]
[355400896,1741105881170,-173.003682,0.00045,120]
[355400897,1741105881225,-173.003682,0.00045,120]
[355400898,1741105881259,-173.003682,0.00045,120]
[355400899,1741105881297,-173.003682,0.00045,120]
[355400900,1741105881330,-151.0,0.00045,120]
[355400901,1741105881360,-151.0,0.00045,120]
[355400902,1741105881389,-20462.0,0.00045,120]
[355400903,1741105881420,-367.53,0.00045,30]
[355400904,1741105881456,-600.51675,0.00045017,120]
[355400905,1741105881490,-500.0,0.00045038,30]
[355400906,1741105881521,-500.0,0.00045094,30]
[355400907,1741105881551,-1136.64054549,0.00045096,99]
[355400908,1741105881581,-1136.64054549,0.00045196,93]
[355400909,1741105881613,-151.0,0.00045205,120]
[355400910,1741105881643,-456.735376,0.00045205,120]
[355400911,1741105881672,-456.735376,0.00045205,120]
[355400912,1741105881706,-195.758114,0.00045205,120]
[355400913,1741105881737,-195.758114,0.00045205,120]
[355400914,1741105881771,-500.0,0.00045205,120]
[355400915,1741105881805,-151.0,0.00045205,120]
[355400916,1741105881837,-500.0,0.00045205,120]
[355400917,1741105881870,-500.0,0.00045205,120]
[355400918,1741105882014,-696.57,0.00045205,120]
[355400919,1741105882049,-151.0,0.00045205,120]
[355400920,1741105882083,-226.64118,0.00045205,120]
[355400921,1741105882117,-500.0,0.00045205,120]
[355400922,1741105882150,-151.0,0.00045205,120]
[355400923,1741105882181,-506.59619552,0.00045205,120]
[355400924,1741105882214,-768.96,0.00045205,120]
[355400925,1741105882244,-500.0,0.00045205,120]
[355400926,1741105882275,-4600.61,0.00045205,120]
[355400927,1741105882309,-699.41,0.00045205,120]
[355400928,1741105882340,-2239.84,0.00045205,120]
[355400929,1741105882370,-482.201552,0.00045205,120]
[355400930,1741105882399,-482.201552,0.00045205,120]
[355400931,1741105882432,-877.62,0.00045205,120]
[355400932,1741105882463,-616.372589,0.00045205,120]
[355400933,1741105882495,-542.23,0.00045205,120]
[355400934,1741105882526,-616.372589,0.00045205,120]
[355400935,1741105882556,-151.0,0.00045205,120]
[355400936,1741105882588,-866.1,0.00045205,120]
[355400937,1741105882617,-534.78,0.00045205,120]
[355400938,1741105882647,-151.0,0.00045205,120]
[355400939,1741105882677,-500.0,0.00045205,120]
[355400940,1741105882709,-151.0,0.00045205,120]
[355400941,1741105882737,-561.19,0.00045205,120]
[355400942,1741105882766,-810.98,0.00045205,120]
[355400943,1741105882795,-151.0,0.00045205,120]
[355400944,1741105882825,-1169.18,0.00045205,120]
[355400945,1741105882855,-1459.67,0.00045205,120]
[355400946,1741105882884,-500.0,0.00045205,120]
[355400947,1741105882913,-500.0,0.00045205,120]
[355400948,1741105882945,-701.01,0.00045205,120]
[355400949,1741105882980,-2585.09,0.00045205,120]
[355400950,1741105883011,-500.0,0.00045205,120]
[355400951,1741105883045,-500.0,0.00045205,120]
[355400952,1741105883076,-1453.2,0.00045205,30]
[355400953,1741105883108,-1136.64054549,0.00045296,100]
[355400954,1741105883141,-2400.0,0.00045314,120]
[355400955,1741105883171,-5000.0,0.00045354,30]
[355400956,1741105883203,-1136.64054549,0.00045396,98]
[355400957,1741105883237,-151.0,0.00045447,120]
[355400958,1741105883267,-500.0,0.00045479,120]
[355400959,1741105883298,-500.0,0.00045479,120]
[355400960,1741105883328,-500.0,0.00045479,120]
[355400961,1741105883357,-696.57,0.00045479,120]
[355400962,1741105883386,-500.0,0.00045479,120]
[355400963,1741105883414,-768.96,0.00045479,120]
[355400964,1741105883445,-500.0,0.00045479,120]
[355400965,1741105883481,-4600.61,0.00045479,120]
[355400966,1741105883512,-699.41,0.00045479,120]
[355400967,1741105883543,-2239.84,0.00045479,120]
[355400968,1741105883574,-877.62,0.00045479,120]
[355400969,1741105883605,-542.23,0.00045479,120]
[355400970,1741105883637,-866.1,0.00045479,120]
[355400971,1741105883668,-534.78,0.00045479,120]
[355400972,1741105883700,-500.0,0.00045479,120]
[355400973,1741105883735,-561.19,0.00045479,120]
[355400974,1741105883766,-810.98,0.00045479,120]
[355400975,1741105883797,-1169.18,0.00045479,120]
[355400976,1741105883833,-1459.67,0.00045479,120]
[355400977,1741105883866,-500.0,0.00045479,120]
[355400978,1741105883899,-500.0,0.00045479,120]
[355400979,1741105883931,-701.01,0.00045479,120]
[355400980,1741105883966,-2585.09,0.00045479,120]
[355400981,1741105884105,-500.0,0.00045479,120]
[355400982,1741105884139,-500.0,0.00045479,120]
[355400983,1741105884172,-1453.2,0.00045479,30]
[355400984,1741105884210,-1136.64054549,0.00045496,91]
[355400985,1741105884242,-5000.00000001,0.000455,120]
[355400986,1741105884275,-160.0,0.00045514,120]
[355400987,1741105884307,-500.0,0.00045569,30]
[355400988,1741105884338,-1136.64054549,0.00045596,94]
[355400989,1741105884371,-1136.64054549,0.00045696,100]
[355400990,1741105884404,-196.34,0.000457,30]
[355400991,1741105884436,-150.0,0.00045752,30]
[355400992,1741105884473,-638.21881998,0.00045753,120]
[355400993,1741105884503,-500.0,0.00045753,120]
[355400994,1741105884532,-500.0,0.00045753,120]
[355400995,1741105884560,-696.57,0.00045753,120]
[355400996,1741105884588,-500.0,0.00045753,120]
[355400997,1741105884617,-768.96,0.00045753,120]
[355400998,1741105884646,-500.0,0.00045753,120]
[355400999,1741105884675,-4600.61,0.00045753,120]
[355401000,1741105884709,-699.41,0.00045753,120]
[355401001,1741105884742,-2239.84,0.00045753,120]
[355401002,1741105884774,-877.62,0.00045753,120]
[355401003,1741105884805,-542.23,0.00045753,120]
[355401004,1741105884836,-866.1,0.00045753,120]
[355401005,1741105884863,-534.78,0.00045753,120]
[355401006,1741105884892,-500.0,0.00045753,120]
[355401007,1741105884920,-561.19,0.00045753,120]
[355401008,1741105884949,-810.98,0.00045753,120]
[355401009,1741105884985,-1169.18,0.00045753,120]
[355401010,1741105885016,-1459.67,0.00045753,120]
[355401011,1741105885045,-500.0,0.00045753,120]
[355401012,1741105885076,-500.0,0.00045753,120]
[355401013,1741105885110,-701.01,0.00045753,120]
[355401014,1741105885142,-2585.09,0.00045753,120]
[355401015,1741105885174,-569.55421597,0.00045753,120]
[355401016,1741105885207,-500.0,0.00045753,120]
[355401017,1741105885236,-151.0,0.00045753,120]
[355401018,1741105885267,-1453.2,0.00045753,30]
[355401019,1741105885295,-1136.64054549,0.00045796,92]
[355401020,1741105885322,-5000.0,0.00045812,30]
[355401021,1741105885350,-156.50505,0.00045817,30]
[355401022,1741105885379,-2400.0,0.00045862,120]
[355401023,1741105885408,-156.50505,0.0004588,60]
[355401024,1741105885436,-1136.64054549,0.00045896,100]
[355401025,1741105885465,-1136.64054549,0.00045996,99]
[355401026,1741105885492,-2749.6791001,0.00046,120]
[355401027,1741105885520,-2000.0,0.00046,40]
[355401028,1741105885547,-4043.0,0.00046,30]
[355401029,1741105885576,-151.0,0.00046027,120]
[355401030,1741105885603,-456.735376,0.00046027,120]
[355401031,1741105885632,-456.735376,0.00046027,120]
[355401032,1741105885659,-195.758114,0.00046027,120]
[355401033,1741105885687,-195.758114,0.00046027,120]
[355401034,1741105885717,-151.0,0.00046027,120]
[355401035,1741105885746,-342.41841688,0.00046027,120]
[355401036,1741105885774,-260.57,0.00046027,120]
[355401037,1741105885807,-696.57,0.00046027,120]
[355401038,1741105885838,-151.0,0.00046027,120]
[355401039,1741105885871,-500.0,0.00046027,120]
[355401040,1741105885901,-151.0,0.00046027,120]
[355401041,1741105885929,-768.96,0.00046027,120]
[355401042,1741105886050,-500.0,0.00046027,120]
[355401043,1741105886080,-4600.61,0.00046027,120]
[355401044,1741105886111,-699.41,0.00046027,120]
[355401045,1741105886145,-2239.84,0.00046027,120]
[355401046,1741105886174,-482.201552,0.00046027,120]
[355401047,1741105886202,-482.201552,0.00046027,120]
[355401048,1741105886237,-877.62,0.00046027,120]
[355401049,1741105886265,-616.372589,0.00046027,120]
[355401050,1741105886294,-542.23,0.00046027,120]
[355401051,1741105886322,-616.372589,0.00046027,120]
[355401052,1741105886350,-151.0,0.00046027,120]
[355401053,1741105886380,-866.1,0.00046027,120]
[355401054,1741105886407,-534.78,0.00046027,120]
[355401055,1741105886441,-293.696991,0.00046027,120]
[355401056,1741105886475,-500.0,0.00046027,120]
[355401057,1741105886505,-151.0,0.00046027,120]
[355401058,1741105886535,-561.19,0.00046027,120]
[355401059,1741105886566,-810.98,0.00046027,120]
[355401060,1741105886596,-232.638531,0.00046027,120]
[355401061,1741105886626,-1169.18,0.00046027,120]
[355401062,1741105886659,-1459.67,0.00046027,120]
[355401063,1741105886691,-170.53771132,0.00046027,120]
[355401064,1741105886727,-645.95848501,0.00046027,120]
[355401065,1741105886759,-701.01,0.00046027,120]
[355401066,1741105886791,-2585.09,0.00046027,120]
[355401067,1741105886822,-500.0,0.00046027,120]
[355401068,1741105886853,-1453.2,0.00046027,30]
[355401069,1741105886886,-500.0,0.00046068,30]
[355401070,1741105886918,-356.0733927,0.00046091,30]
[355401071,1741105886949,-1136.64054549,0.00046096,98]
[355401072,1741105886984,-160.22946575,0.00046187,105]
[355401073,1741105887015,-1136.64054549,0.00046196,91]
[355401074,1741105887046,-1567.4,0.00046275,30]
[355401075,1741105887076,-1136.64054549,0.00046296,97]
[355401076,1741105887109,-151.0,0.00046301,30]
[355401077,1741105887140,-173.003682,0.00046301,120]
[355401078,1741105887169,-173.003682,0.00046301,120]
[355401079,1741105887197,-227.0,0.00046301,120]
[355401080,1741105887233,-696.57,0.00046301,120]
[355401081,1741105887263,-567.21173789,0.00046301,120]
[355401082,1741105887292,-768.96,0.00046301,120]
[355401083,1741105887320,-500.0,0.00046301,120]
[355401084,1741105887349,-4600.61,0.00046301,120]
[355401085,1741105887379,-699.41,0.00046301,120]
[355401086,1741105887409,-2239.84,0.00046301,120]
[355401087,1741105887438,-877.62,0.00046301,120]
[355401088,1741105887467,-542.23,0.00046301,120]
[355401089,1741105887496,-866.1,0.00046301,120]
[355401090,1741105887526,-534.78,0.00046301,120]
[355401091,1741105887556,-500.0,0.00046301,120]
[355401092,1741105887585,-561.19,0.00046301,120]
[355401093,1741105887614,-810.98,0.00046301,120]
[355401094,1741105887642,-1169.18,0.00046301,120]
[355401095,1741105887672,-1459.67,0.00046301,120]
[355401096,1741105887701,-701.01,0.00046301,120]
[355401097,1741105887735,-2585.09,0.00046301,120]
[355401098,1741105887763,-500.0,0.00046301,120]
[355401099,1741105887791,-1453.2,0.00046301,30]
[355401100,1741105887904,-500.0,0.00046377,30]
[355401101,1741105887936,-1136.64054549,0.00046396,90]
[355401102,1741105887967,-2400.0,0.0004641,120]
[355401103,1741105887997,-500000.0,0.0004644,30]
[355401104,1741105888027,-151.0,0.0004644,30]
[355401105,1741105888057,-173.003682,0.0004644,120]
[355401106,1741105888091,-173.003682,0.0004644,120]
[355401107,1741105888123,-173.696596,0.0004644,120]
[355401108,1741105888155,-456.735376,0.0004644,120]
[355401109,1741105888187,-456.735376,0.0004644,120]
[355401110,1741105888219,-195.758114,0.0004644,120]
[355401111,1741105888251,-195.758114,0.0004644,120]
[355401112,1741105888285,-151.0,0.0004644,120]
[355401113,1741105888321,-151.0,0.0004644,120]
[355401114,1741105888352,-151.0,0.0004644,120]
[355401115,1741105888382,-482.201552,0.0004644,120]
[355401116,1741105888411,-482.20156,0.0004644,120]
[355401117,1741105888441,-616.372589,0.0004644,120]
[355401118,1741105888476,-616.372586,0.0004644,120]
[355401119,1741105888509,-151.0,0.0004644,120]
[355401120,1741105888540,-151.0,0.0004644,120]
[355401121,1741105888571,-151.0,0.0004644,120]
[355401122,1741105888600,-151.0,0.0004644,120]
[355401123,1741105888629,-940.71817132,0.00046464,30]
[355401124,1741105888657,-500.0,0.00046496,30]
[355401125,1741105888688,-1136.64054549,0.00046496,94]
[355401126,1741105888721,-500.0,0.000465,120]
[355401127,1741105888752,-500.0,0.000465,120]
[355401128,1741105888783,-500.0,0.000465,120]
[355401129,1741105888830,-500.0,0.000465,120]
[355401130,1741105888878,-500.0,0.000465,120]
[355401131,1741105888929,-500.0,0.000465,120]
[355401132,1741105888985,-696.57,0.00046575,120]
[355401133,1741105889031,-768.96,0.00046575,120]
[355401134,1741105889083,-500.0,0.00046575,120]
[355401135,1741105889132,-4600.61,0.00046575,120]
[355401136,1741105889177,-699.41,0.00046575,120]
[355401137,1741105889223,-2239.84,0.00046575,120]
[355401138,1741105889265,-877.62,0.00046575,120]
[355401139,1741105889308,-542.23,0.00046575,120]
[355401140,1741105889347,-866.1,0.00046575,120]
[355401141,1741105889385,-534.78,0.00046575,120]
[355401142,1741105889425,-500.0,0.00046575,120]
[355401143,1741105889465,-561.19,0.00046575,120]
[355401144,1741105889505,-810.98,0.00046575,120]
[355401145,1741105889548,-1169.18,0.00046575,120]
[355401146,1741105889586,-1459.67,0.00046575,120]